[Event "*** Biggest EVER Titled Tuesday"]
[Site "Chess.com"]
[Date "2018.04.17"]
[Round "4"]
[White "TBergh98"]
[Black "Zhani-Z"]
[Result "0-1"]
[WhiteElo "2236"]
[BlackElo "2409"]
[TimeControl "180+2"]
[EndTime "13:52:05 PDT"]
[Termination "Zhani-Z won by checkmate"]

1. d4 {[%clk 0:03:01.9]} 1... Nf6 {[%clk 0:02:59.6]} 2. Bg5 {[%clk 0:02:59.7]}
2... d5 {[%clk 0:03:00]} 3. Bxf6 {[%clk 0:03:00.6]} 3... exf6 {[%clk 0:03:00.2]}
4. g3 {[%clk 0:03:01.4]} 4... c6 {[%clk 0:03:00.3]} 5. Bg2 {[%clk 0:03:02.8]}
5... f5 {[%clk 0:03:01]} 6. e3 {[%clk 0:03:04.3]} 6... Nd7 {[%clk 0:03:02.3]} 7.
Ne2 {[%clk 0:03:05.8]} 7... Nf6 {[%clk 0:03:03.8]} 8. Nd2 {[%clk 0:03:07.3]}
8... Bd6 {[%clk 0:03:05.1]} 9. O-O {[%clk 0:03:08.2]} 9... O-O {[%clk
0:03:05.8]} 10. c4 {[%clk 0:03:09.5]} 10... dxc4 {[%clk 0:03:07.1]} 11. Nxc4
{[%clk 0:03:11.4]} 11... Bc7 {[%clk 0:03:08.6]} 12. a3 {[%clk 0:03:12.3]} 12...
Be6 {[%clk 0:03:09.4]} 13. Rc1 {[%clk 0:03:12.6]} 13... Bd5 {[%clk 0:03:09.9]}
14. Nf4 {[%clk 0:03:07.7]} 14... Bxg2 {[%clk 0:03:10.6]} 15. Kxg2 {[%clk
0:03:09.6]} 15... Nd5 {[%clk 0:03:11.7]} 16. Nxd5 {[%clk 0:03:07.7]} 16... Qxd5+
{[%clk 0:03:11.7]} 17. Kg1 {[%clk 0:03:08.4]} 17... Rfe8 {[%clk 0:03:12.2]} 18.
b4 {[%clk 0:03:06]} 18... g6 {[%clk 0:03:12.4]} 19. Nd2 {[%clk 0:03:00]} 19...
h5 {[%clk 0:03:11.6]} 20. Rc5 {[%clk 0:03:00.2]} 20... Qd7 {[%clk 0:03:12.4]}
21. Qb3 {[%clk 0:02:57.7]} 21... h4 {[%clk 0:03:05.6]} 22. Rfc1 {[%clk 0:02:57]}
22... Bd6 {[%clk 0:03:02.7]} 23. R5c2 {[%clk 0:02:56]} 23... Re7 {[%clk
0:02:53.7]} 24. a4 {[%clk 0:02:56.5]} 24... Rae8 {[%clk 0:02:53.3]} 25. b5
{[%clk 0:02:57.8]} 25... hxg3 {[%clk 0:02:52.6]} 26. hxg3 {[%clk 0:02:58.6]}
26... Bxg3 {[%clk 0:02:51.8]} 27. bxc6 {[%clk 0:02:56.7]} 27... bxc6 {[%clk
0:02:50.9]} 28. Nf1 {[%clk 0:02:53.2]} 28... Bb8 {[%clk 0:02:30.4]} 29. Rxc6
{[%clk 0:02:52.8]} 29... Kg7 {[%clk 0:02:30.7]} 30. Nd2 {[%clk 0:02:08.2]} 30...
f4 {[%clk 0:02:29.5]} 31. exf4 {[%clk 0:01:47.4]} 31... Bxf4 {[%clk 0:02:27]}
32. Qc3 {[%clk 0:01:37.9]} 32... Qg4+ {[%clk 0:02:17.5]} 33. Kf1 {[%clk
0:01:28.5]} 33... Bxd2 {[%clk 0:02:11.1]} 34. Qxd2 {[%clk 0:01:30.4]} 34... Qh3+
{[%clk 0:02:10.8]} 35. Kg1 {[%clk 0:01:30.4]} 35... Re4 {[%clk 0:02:01.6]} 36.
R6c3 {[%clk 0:01:20.4]} 36... Rg4+ {[%clk 0:02:01.8]} 37. Rg3 {[%clk 0:01:21.3]}
37... Rxg3+ {[%clk 0:02:02.8]} 38. fxg3 {[%clk 0:01:23.2]} 38... Qxg3+ {[%clk
0:02:03.8]} 39. Kf1 {[%clk 0:01:24.7]} 39... Re4 {[%clk 0:01:50.4]} 40. Qa5
{[%clk 0:00:26.7]} 40... Rf4+ {[%clk 0:01:48.3]} 41. Ke2 {[%clk 0:00:27.3]}
41... Rf2+ {[%clk 0:01:49.4]} 42. Kd1 {[%clk 0:00:27.5]} 42... Qd3+ {[%clk
0:01:50.1]} 43. Ke1 {[%clk 0:00:27.6]} 43... Qe2# {[%clk 0:01:51.4]} 0-1

[Event "*** Biggest EVER Titled Tuesday"]
[Site "Chess.com"]
[Date "2018.04.17"]
[Round "4"]
[White "ChadBiryani"]
[Black "pedromartinez91"]
[Result "1-0"]
[WhiteElo "2258"]
[BlackElo "2411"]
[TimeControl "180+2"]
[EndTime "13:52:11 PDT"]
[Termination "ChadBiryani won by resignation"]

1. d4 {[%clk 0:02:55.3]} 1... d5 {[%clk 0:03:00.7]} 2. Bf4 {[%clk 0:02:56.5]}
2... c5 {[%clk 0:02:57.9]} 3. e3 {[%clk 0:02:57.7]} 3... Nc6 {[%clk 0:02:59]} 4.
Nf3 {[%clk 0:02:55.1]} 4... Nf6 {[%clk 0:02:58.5]} 5. c3 {[%clk 0:02:56]} 5...
Qb6 {[%clk 0:02:58.3]} 6. Qb3 {[%clk 0:02:56.1]} 6... c4 {[%clk 0:02:59.4]} 7.
Qc2 {[%clk 0:02:57]} 7... Bf5 {[%clk 0:02:50.2]} 8. Qc1 {[%clk 0:02:57.9]} 8...
Nh5 {[%clk 0:02:50.8]} 9. Bg5 {[%clk 0:02:58]} 9... f6 {[%clk 0:02:51.3]} 10.
Bh4 {[%clk 0:02:56.6]} 10... e5 {[%clk 0:02:31.9]} 11. Nbd2 {[%clk 0:02:51.6]}
11... e4 {[%clk 0:02:25.7]} 12. Ng1 {[%clk 0:02:51.8]} 12... Qd8 {[%clk
0:02:15]} 13. Be2 {[%clk 0:02:49]} 13... g6 {[%clk 0:02:06.5]} 14. g4 {[%clk
0:02:49.5]} 14... Ng7 {[%clk 0:01:42.8]} 15. gxf5 {[%clk 0:02:49.8]} 15... Nxf5
{[%clk 0:01:44.7]} 16. Bg3 {[%clk 0:02:50.6]} 16... h5 {[%clk 0:01:46.6]} 17. h4
{[%clk 0:02:43.1]} 17... Nxg3 {[%clk 0:01:47.6]} 18. fxg3 {[%clk 0:02:44.1]}
18... Bd6 {[%clk 0:01:49.5]} 19. Nf1 {[%clk 0:02:44.4]} 19... Qc7 {[%clk
0:01:50]} 20. b3 {[%clk 0:02:34.5]} 20... Bxg3+ {[%clk 0:01:49.9]} 21. Kd1
{[%clk 0:02:31.9]} 21... b5 {[%clk 0:01:42]} 22. a4 {[%clk 0:02:32.1]} 22... Na5
{[%clk 0:01:35.1]} 23. bxc4 {[%clk 0:02:23.9]} 23... Nb3 {[%clk 0:01:30.6]} 24.
Qb2 {[%clk 0:02:23.3]} 24... Nxa1 {[%clk 0:01:31.7]} 25. Qxb5+ {[%clk
0:02:04.5]} 25... Kf8 {[%clk 0:01:17]} 26. Qb2 {[%clk 0:01:56.5]} 26... dxc4
{[%clk 0:00:47.1]} 27. Qxa1 {[%clk 0:01:51.8]} 27... Bd6 {[%clk 0:00:47.7]} 28.
Nd2 {[%clk 0:01:51.6]} 28... Kg7 {[%clk 0:00:45.5]} 29. Nxc4 {[%clk 0:01:46.1]}
29... Be7 {[%clk 0:00:46.3]} 30. Nh3 {[%clk 0:01:45.3]} 30... g5 {[%clk
0:00:31.1]} 31. Qb1 {[%clk 0:01:28.9]} 31... Qd7 {[%clk 0:00:18.3]} 32. Qxe4
{[%clk 0:01:22.1]} 32... Rae8 {[%clk 0:00:11.6]} 33. hxg5 {[%clk 0:01:17.6]}
33... fxg5 {[%clk 0:00:13.5]} 34. Ne5 {[%clk 0:01:13.4]} 34... Qxa4+ {[%clk
0:00:13.9]} 35. Ke1 {[%clk 0:01:14.7]} 35... Qa6 {[%clk 0:00:14.2]} 36. Bxa6
{[%clk 0:01:15.1]} 1-0

[Event "*** Biggest EVER Titled Tuesday"]
[Site "Chess.com"]
[Date "2018.04.17"]
[Round "4"]
[White "nochewycandy"]
[Black "BjarkeSahl"]
[Result "0-1"]
[WhiteElo "2068"]
[BlackElo "2207"]
[TimeControl "180+2"]
[EndTime "13:52:14 PDT"]
[Termination "BjarkeSahl won by resignation"]

1. c4 {[%clk 0:03:01.9]} 1... e5 {[%clk 0:02:56.2]} 2. g3 {[%clk 0:03:02.8]}
2... Nf6 {[%clk 0:02:57.1]} 3. Bg2 {[%clk 0:03:04.2]} 3... h5 {[%clk 0:02:57.7]}
4. Nf3 {[%clk 0:03:04.2]} 4... e4 {[%clk 0:02:57.5]} 5. Nd4 {[%clk 0:03:03.5]}
5... Nc6 {[%clk 0:02:57.4]} 6. Nxc6 {[%clk 0:02:56.3]} 6... bxc6 {[%clk
0:02:58.5]} 7. d3 {[%clk 0:02:58.2]} 7... Bb4+ {[%clk 0:02:43.2]} 8. Nc3 {[%clk
0:02:58.3]} 8... Qe7 {[%clk 0:02:43.4]} 9. Bg5 {[%clk 0:02:56.6]} 9... h4 {[%clk
0:02:19.4]} 10. Bxh4 {[%clk 0:02:57.3]} 10... e3 {[%clk 0:02:05.4]} 11. O-O
{[%clk 0:02:28.8]} 11... Rxh4 {[%clk 0:01:49.8]} 12. gxh4 {[%clk 0:02:29.4]}
12... Ng4 {[%clk 0:01:48.3]} 13. f3 {[%clk 0:02:25.7]} 13... Nf2 {[%clk
0:01:37.6]} 14. Rxf2 {[%clk 0:02:25.8]} 14... exf2+ {[%clk 0:01:38.1]} 15. Kxf2
{[%clk 0:02:27.7]} 15... Bc5+ {[%clk 0:01:30.7]} 16. d4 {[%clk 0:02:21.5]} 16...
Qxh4+ {[%clk 0:01:30.8]} 17. Ke3 {[%clk 0:02:22.8]} 17... Qg5+ {[%clk 0:01:26]}
18. Kf2 {[%clk 0:02:22.1]} 18... Qh4+ {[%clk 0:01:24.1]} 19. Ke3 {[%clk
0:02:23.2]} 19... Be7 {[%clk 0:01:08.7]} 20. Ne4 {[%clk 0:02:11.5]} 20... d5
{[%clk 0:01:06.7]} 21. cxd5 {[%clk 0:02:11.1]} 21... cxd5 {[%clk 0:01:05.2]} 22.
Nd2 {[%clk 0:01:59.5]} 22... Bf5 {[%clk 0:00:52.4]} 23. Qa4+ {[%clk 0:01:54.9]}
23... Kf8 {[%clk 0:00:52.9]} 24. f4 {[%clk 0:01:51.9]} 24... g5 {[%clk
0:00:52.2]} 25. Nf3 {[%clk 0:01:44.5]} 25... Qxf4+ {[%clk 0:00:51.7]} 26. Kf2
{[%clk 0:01:45.8]} 26... g4 {[%clk 0:00:48.1]} 27. e3 {[%clk 0:01:46.8]} 27...
Bh4+ {[%clk 0:00:32.4]} 28. Kf1 {[%clk 0:01:28.6]} 28... Bd3+ {[%clk 0:00:33.2]}
29. Kg1 {[%clk 0:01:27.9]} 29... Qxe3+ {[%clk 0:00:34.7]} 30. Kh1 {[%clk
0:01:29.4]} 30... gxf3 {[%clk 0:00:36]} 31. Bh3 {[%clk 0:01:24.1]} 31... Be4
{[%clk 0:00:34.2]} 32. Qb4+ {[%clk 0:01:21.8]} 32... Be7 {[%clk 0:00:29.7]} 33.
Qa5 {[%clk 0:01:16.7]} 33... Bd6 {[%clk 0:00:20.8]} 34. Rf1 {[%clk 0:01:08.1]}
34... f2+ {[%clk 0:00:21.2]} 35. Bg2 {[%clk 0:01:08.8]} 35... Qh3 {[%clk
0:00:21.5]} 0-1

[Event "*** Biggest EVER Titled Tuesday"]
[Site "Chess.com"]
[Date "2018.04.17"]
[Round "4"]
[White "RojonR"]
[Black "Rish_97"]
[Result "0-1"]
[WhiteElo "2388"]
[BlackElo "2289"]
[TimeControl "180+2"]
[EndTime "13:52:20 PDT"]
[Termination "Rish_97 won by resignation"]

1. e4 {[%clk 0:03:01.9]} 1... e5 {[%clk 0:03:00.1]} 2. Nf3 {[%clk 0:03:02.5]}
2... Nc6 {[%clk 0:03:00.1]} 3. Bc4 {[%clk 0:03:00.6]} 3... Bc5 {[%clk
0:02:59.6]} 4. c3 {[%clk 0:03:00.3]} 4... Nf6 {[%clk 0:02:59.6]} 5. d3 {[%clk
0:02:58.3]} 5... a6 {[%clk 0:02:55.9]} 6. a4 {[%clk 0:02:58.4]} 6... Ba7 {[%clk
0:02:52.8]} 7. O-O {[%clk 0:02:58.3]} 7... d6 {[%clk 0:02:52]} 8. Nbd2 {[%clk
0:02:58.9]} 8... O-O {[%clk 0:02:52.1]} 9. Re1 {[%clk 0:02:59.3]} 9... Ng4
{[%clk 0:02:51.4]} 10. Re2 {[%clk 0:02:59.9]} 10... Kh8 {[%clk 0:02:50.4]} 11.
h3 {[%clk 0:02:59.7]} 11... Nh6 {[%clk 0:02:51]} 12. Nf1 {[%clk 0:03:01]} 12...
f5 {[%clk 0:02:50.6]} 13. Bxh6 {[%clk 0:02:46.8]} 13... gxh6 {[%clk 0:02:52.3]}
14. exf5 {[%clk 0:02:47.4]} 14... Bxf5 {[%clk 0:02:49.4]} 15. Bd5 {[%clk
0:02:48.5]} 15... Qe7 {[%clk 0:02:41.2]} 16. Ng3 {[%clk 0:02:42.9]} 16... Qg7
{[%clk 0:02:35]} 17. Nxf5 {[%clk 0:02:31.4]} 17... Rxf5 {[%clk 0:02:36.9]} 18.
Kh1 {[%clk 0:02:30]} 18... Raf8 {[%clk 0:02:21.3]} 19. Qd2 {[%clk 0:02:21.3]}
19... Ne7 {[%clk 0:02:03.4]} 20. Bxb7 {[%clk 0:01:38.5]} 20... Ng6 {[%clk
0:02:02.7]} 21. Rg1 {[%clk 0:01:22.1]} 21... Nf4 {[%clk 0:01:52.7]} 22. Ree1
{[%clk 0:01:22.1]} 22... Rh5 {[%clk 0:01:48.1]} 23. d4 {[%clk 0:01:13.1]} 23...
Rg8 {[%clk 0:01:37.4]} 24. Nh2 {[%clk 0:01:05.3]} 24... d5 {[%clk 0:01:21.1]}
25. dxe5 {[%clk 0:01:01.2]} 25... Qg5 {[%clk 0:01:10.7]} 26. e6 {[%clk 0:00:35]}
26... Nxh3 {[%clk 0:01:03.3]} 27. gxh3 {[%clk 0:00:22.2]} 27... Qxd2 {[%clk
0:01:00.9]} 28. e7 {[%clk 0:00:15.7]} 28... Rxg1+ {[%clk 0:01:00.4]} 29. Rxg1
{[%clk 0:00:16.4]} 29... Re5 {[%clk 0:00:57.6]} 30. Nf3 {[%clk 0:00:14]} 30...
Qe2 {[%clk 0:00:57.3]} 31. Bxd5 {[%clk 0:00:12.3]} 31... Rxd5 {[%clk 0:00:53.9]}
0-1

[Event "*** Biggest EVER Titled Tuesday"]
[Site "Chess.com"]
[Date "2018.04.17"]
[Round "4"]
[White "vuqaresedli"]
[Black "Mimsychess"]
[Result "0-1"]
[WhiteElo "2261"]
[BlackElo "2303"]
[TimeControl "180+2"]
[EndTime "13:52:26 PDT"]
[Termination "Mimsychess won by resignation"]

1. e4 {[%clk 0:03:01.9]} 1... c6 {[%clk 0:02:58.5]} 2. d4 {[%clk 0:03:01.1]}
2... d5 {[%clk 0:02:59.4]} 3. e5 {[%clk 0:03:01.8]} 3... Bf5 {[%clk 0:03:00.2]}
4. Nf3 {[%clk 0:03:00.5]} 4... e6 {[%clk 0:03:01.1]} 5. Be2 {[%clk 0:02:59]}
5... Nd7 {[%clk 0:02:57.6]} 6. Nbd2 {[%clk 0:02:54]} 6... Ne7 {[%clk 0:02:54.1]}
7. Nb3 {[%clk 0:02:53.9]} 7... h6 {[%clk 0:02:52.9]} 8. O-O {[%clk 0:02:53.3]}
8... Qc7 {[%clk 0:02:53.3]} 9. Bd2 {[%clk 0:02:51.1]} 9... g5 {[%clk 0:02:44.3]}
10. Bb4 {[%clk 0:02:47.9]} 10... Ng6 {[%clk 0:02:36.5]} 11. Bxf8 {[%clk
0:02:48.5]} 11... Kxf8 {[%clk 0:02:36.8]} 12. Ne1 {[%clk 0:02:45.9]} 12... Nf4
{[%clk 0:02:35.3]} 13. Nd3 {[%clk 0:02:43.8]} 13... Nxe2+ {[%clk 0:02:27.6]} 14.
Qxe2 {[%clk 0:02:43.8]} 14... Kg7 {[%clk 0:02:26.2]} 15. g4 {[%clk 0:02:43.2]}
15... Be4 {[%clk 0:02:08.5]} 16. f3 {[%clk 0:02:42.2]} 16... Bxd3 {[%clk
0:02:05.9]} 17. cxd3 {[%clk 0:02:38.2]} 17... Nf8 {[%clk 0:02:07.3]} 18. f4
{[%clk 0:02:38.1]} 18... Ng6 {[%clk 0:02:07.9]} 19. f5 {[%clk 0:02:37.2]} 19...
Nf4 {[%clk 0:02:08.7]} 20. Rxf4 {[%clk 0:02:38.3]} 20... gxf4 {[%clk 0:02:09.9]}
21. Rf1 {[%clk 0:02:39.8]} 21... Qd8 {[%clk 0:01:57.4]} 22. f6+ {[%clk
0:02:36.1]} 22... Kh7 {[%clk 0:01:56.3]} 23. Rxf4 {[%clk 0:02:36.8]} 23... Rg8
{[%clk 0:01:57.5]} 24. h4 {[%clk 0:02:37.4]} 24... Rg6 {[%clk 0:01:57.2]} 25.
Kh2 {[%clk 0:02:34.3]} 25... Qg8 {[%clk 0:01:57.4]} 26. Nd2 {[%clk 0:02:31.9]}
26... Rc8 {[%clk 0:01:57.3]} 27. b4 {[%clk 0:02:29.2]} 27... b6 {[%clk
0:01:57.7]} 28. g5 {[%clk 0:02:27.8]} 28... c5 {[%clk 0:01:56.6]} 29. Qh5 {[%clk
0:02:24.8]} 29... cxb4 {[%clk 0:01:51.2]} 30. Nf3 {[%clk 0:02:18.5]} 30... Rc2+
{[%clk 0:01:50.2]} 31. Kh1 {[%clk 0:02:18]} 31... Rf2 {[%clk 0:01:49.8]} 32. Kg1
{[%clk 0:02:14.7]} 32... Rxa2 {[%clk 0:01:49.3]} 33. Kf1 {[%clk 0:02:15.3]}
33... b3 {[%clk 0:01:50.4]} 34. Qg4 {[%clk 0:02:04.7]} 34... b2 {[%clk
0:01:42.8]} 35. Nd2 {[%clk 0:02:05.8]} 35... Ra1+ {[%clk 0:01:43.9]} 36. Kf2
{[%clk 0:02:07]} 36... b1=Q {[%clk 0:01:41.9]} 37. Nxb1 {[%clk 0:02:08.4]} 37...
Rxb1 {[%clk 0:01:43.4]} 38. Ke3 {[%clk 0:02:10]} 38... hxg5 {[%clk 0:01:40]} 39.
hxg5 {[%clk 0:02:10.3]} 39... Rh1 {[%clk 0:01:37.1]} 40. Rf1 {[%clk 0:01:47.1]}
40... Rh2 {[%clk 0:01:22.1]} 41. Rf2 {[%clk 0:01:46]} 41... Rhh6 {[%clk
0:01:17.7]} 42. Rg2 {[%clk 0:01:46.8]} 42... Kh8 {[%clk 0:01:16]} 43. Kf4 {[%clk
0:01:45.8]} 43... Rh7 {[%clk 0:01:16.7]} 44. Ra2 {[%clk 0:01:41.1]} 44... a5
{[%clk 0:01:11.6]} 45. Rb2 {[%clk 0:01:42.3]} 45... Rh1 {[%clk 0:01:12.6]} 46.
Rxb6 {[%clk 0:01:42]} 46... Rf1+ {[%clk 0:01:13]} 47. Ke3 {[%clk 0:01:42.6]}
47... Re1+ {[%clk 0:01:11.7]} 48. Kd2 {[%clk 0:01:43.3]} 48... Rh1 {[%clk
0:01:09.6]} 49. Qf3 {[%clk 0:01:35.4]} 49... Rh7 {[%clk 0:01:05.9]} 50. Qf1
{[%clk 0:01:28.6]} 50... Rxg5 {[%clk 0:01:05.5]} 51. Qb1 {[%clk 0:01:29.4]}
51... Rh2+ {[%clk 0:01:06.1]} 52. Kc3 {[%clk 0:01:30.3]} 52... Qc8+ {[%clk
0:01:03.6]} 53. Kb3 {[%clk 0:01:30.8]} 53... Rgg2 {[%clk 0:01:03.5]} 54. Ka4
{[%clk 0:01:31.3]} 54... Ra2+ {[%clk 0:01:04.2]} 55. Kb5 {[%clk 0:01:32.4]}
55... Rhb2+ {[%clk 0:01:04.4]} 56. Qxb2 {[%clk 0:01:32.6]} 56... Rxb2+ {[%clk
0:01:06.3]} 0-1

[Event "*** Biggest EVER Titled Tuesday"]
[Site "Chess.com"]
[Date "2018.04.17"]
[Round "4"]
[White "TheCount"]
[Black "mukhin1"]
[Result "0-1"]
[WhiteElo "2543"]
[BlackElo "2904"]
[TimeControl "180+2"]
[EndTime "13:52:34 PDT"]
[Termination "mukhin1 won by resignation"]

1. d4 {[%clk 0:03:00.9]} 1... e6 {[%clk 0:03:01.9]} 2. c4 {[%clk 0:03:01]} 2...
b6 {[%clk 0:03:03.3]} 3. Nf3 {[%clk 0:02:59.8]} 3... Bb7 {[%clk 0:03:04.4]} 4.
a3 {[%clk 0:02:59.7]} 4... Nf6 {[%clk 0:03:04.7]} 5. Nc3 {[%clk 0:03:00.7]} 5...
Bd6 {[%clk 0:03:03.4]} 6. g3 {[%clk 0:03:01.2]} 6... O-O {[%clk 0:03:02.4]} 7.
Bg2 {[%clk 0:03:02.3]} 7... Be7 {[%clk 0:03:01.6]} 8. O-O {[%clk 0:03:00.3]}
8... d5 {[%clk 0:03:01.9]} 9. Ne5 {[%clk 0:02:55.4]} 9... Nbd7 {[%clk
0:02:58.2]} 10. Qa4 {[%clk 0:02:25.7]} 10... c6 {[%clk 0:02:53.7]} 11. cxd5
{[%clk 0:01:59]} 11... cxd5 {[%clk 0:02:47.3]} 12. Bf4 {[%clk 0:01:57.5]} 12...
Nxe5 {[%clk 0:02:45]} 13. Bxe5 {[%clk 0:01:59.4]} 13... a6 {[%clk 0:02:43.9]}
14. Rac1 {[%clk 0:01:55.8]} 14... Rc8 {[%clk 0:02:40.6]} 15. Qc2 {[%clk
0:01:22.9]} 15... b5 {[%clk 0:02:39.4]} 16. Qd3 {[%clk 0:01:21.5]} 16... Nd7
{[%clk 0:02:33.3]} 17. Bf4 {[%clk 0:01:22.4]} 17... Nb6 {[%clk 0:02:32.6]} 18.
e4 {[%clk 0:01:20.1]} 18... Nc4 {[%clk 0:02:31.5]} 19. Rc2 {[%clk 0:01:14.5]}
19... dxe4 {[%clk 0:02:30.1]} 20. Nxe4 {[%clk 0:01:14.1]} 20... Bd5 {[%clk
0:02:28.3]} 21. Rd1 {[%clk 0:00:59.5]} 21... Qd7 {[%clk 0:02:20.5]} 22. Nc3
{[%clk 0:00:53.8]} 22... Bxg2 {[%clk 0:02:19]} 23. Kxg2 {[%clk 0:00:55.7]} 23...
Rfd8 {[%clk 0:02:20.5]} 24. d5 {[%clk 0:00:50.9]} 24... Qb7 {[%clk 0:02:20.3]}
25. Qf3 {[%clk 0:00:49.7]} 25... e5 {[%clk 0:02:10]} 26. Bc1 {[%clk 0:00:45.5]}
26... Bd6 {[%clk 0:02:08.2]} 27. Re2 {[%clk 0:00:34.2]} 27... Qd7 {[%clk
0:02:03.4]} 28. Ne4 {[%clk 0:00:31]} 28... Bf8 {[%clk 0:01:52.3]} 29. g4 {[%clk
0:00:31]} 29... Nd6 {[%clk 0:01:46.8]} 30. h3 {[%clk 0:00:31]} 30... f6 {[%clk
0:01:19.6]} 31. Be3 {[%clk 0:00:28.1]} 31... Nxe4 {[%clk 0:01:17.9]} 32. Qxe4
{[%clk 0:00:30]} 32... Rc4 {[%clk 0:01:19.2]} 33. Qd3 {[%clk 0:00:24.6]} 33...
Bd6 {[%clk 0:01:19.6]} 34. Rc2 {[%clk 0:00:19.1]} 34... e4 {[%clk 0:01:18.7]}
35. Qe2 {[%clk 0:00:18]} 35... Rxc2 {[%clk 0:01:20.3]} 36. Qxc2 {[%clk
0:00:19.9]} 36... f5 {[%clk 0:01:22.1]} 37. Qc6 {[%clk 0:00:19]} 37... Qf7
{[%clk 0:01:20.8]} 38. Bb6 {[%clk 0:00:18.3]} 38... fxg4 {[%clk 0:01:20.1]} 39.
Bxd8 {[%clk 0:00:14.8]} 39... Qf3+ {[%clk 0:01:21]} 40. Kf1 {[%clk 0:00:13.8]}
40... Qxd1+ {[%clk 0:01:22.3]} 41. Kg2 {[%clk 0:00:15]} 41... gxh3+ {[%clk
0:01:20.7]} 42. Kxh3 {[%clk 0:00:13.8]} 42... Qf3+ {[%clk 0:01:22.2]} 43. Kh4
{[%clk 0:00:14.3]} 43... Qxf2+ {[%clk 0:01:21.1]} 44. Kg4 {[%clk 0:00:14.7]}
44... Qf4+ {[%clk 0:01:18.1]} 0-1

[Event "*** Biggest EVER Titled Tuesday"]
[Site "Chess.com"]
[Date "2018.04.17"]
[Round "4"]
[White "alturas_pacificas"]
[Black "StellarChessPro"]
[Result "0-1"]
[WhiteElo "2169"]
[BlackElo "2371"]
[TimeControl "180+2"]
[EndTime "13:52:37 PDT"]
[Termination "StellarChessPro won by resignation"]

1. d4 {[%clk 0:03:01.9]} 1... d5 {[%clk 0:03:00.6]} 2. Bf4 {[%clk 0:03:03]} 2...
Nf6 {[%clk 0:03:01.4]} 3. e3 {[%clk 0:03:04.2]} 3... g6 {[%clk 0:03:02.4]} 4.
Nf3 {[%clk 0:03:04.2]} 4... Bg7 {[%clk 0:03:03.6]} 5. Be2 {[%clk 0:03:05.6]}
5... O-O {[%clk 0:02:29.1]} 6. O-O {[%clk 0:03:02.4]} 6... c5 {[%clk 0:02:29.4]}
7. Nc3 {[%clk 0:02:57.2]} 7... cxd4 {[%clk 0:02:26.6]} 8. exd4 {[%clk
0:02:56.5]} 8... a6 {[%clk 0:02:27.1]} 9. Ne5 {[%clk 0:02:52.1]} 9... Nc6 {[%clk
0:02:26.2]} 10. Nxc6 {[%clk 0:02:52.3]} 10... bxc6 {[%clk 0:02:28.1]} 11. Be5
{[%clk 0:02:34.8]} 11... Nd7 {[%clk 0:02:21.4]} 12. Bxg7 {[%clk 0:02:34.5]}
12... Kxg7 {[%clk 0:02:23.2]} 13. Na4 {[%clk 0:02:35.9]} 13... Rb8 {[%clk
0:02:22.8]} 14. b3 {[%clk 0:02:36.3]} 14... Qa5 {[%clk 0:02:18.9]} 15. Qe1
{[%clk 0:02:27.1]} 15... Qc7 {[%clk 0:02:18]} 16. Qd2 {[%clk 0:02:22.5]} 16...
e6 {[%clk 0:02:18.6]} 17. h4 {[%clk 0:02:20]} 17... Nf6 {[%clk 0:02:16.2]} 18.
h5 {[%clk 0:02:16.2]} 18... Ne4 {[%clk 0:02:14.8]} 19. h6+ {[%clk 0:02:16.5]}
19... Kh8 {[%clk 0:02:15.1]} 20. Qe3 {[%clk 0:02:14.2]} 20... f6 {[%clk
0:02:03.6]} 21. Bf3 {[%clk 0:02:08.8]} 21... Nd6 {[%clk 0:02:00.2]} 22. Nc5
{[%clk 0:02:08.8]} 22... Nf5 {[%clk 0:02:00.5]} 23. Qd2 {[%clk 0:02:01.3]} 23...
e5 {[%clk 0:01:58.4]} 24. c3 {[%clk 0:01:54.8]} 24... e4 {[%clk 0:01:58.8]} 25.
Be2 {[%clk 0:01:55.8]} 25... g5 {[%clk 0:01:58.5]} 26. Bxa6 {[%clk 0:01:53.8]}
26... Nxh6 {[%clk 0:01:56.2]} 27. Bxc8 {[%clk 0:01:53.9]} 27... Qxc8 {[%clk
0:01:56.9]} 28. a4 {[%clk 0:01:55.4]} 28... Ng4 {[%clk 0:01:47]} 29. Qe2 {[%clk
0:01:48.4]} 29... f5 {[%clk 0:01:45.8]} 30. f3 {[%clk 0:01:49]} 30... Nf6 {[%clk
0:01:43.2]} 31. fxe4 {[%clk 0:01:47.3]} 31... dxe4 {[%clk 0:01:42.6]} 32. a5
{[%clk 0:01:45.1]} 32... f4 {[%clk 0:01:42.5]} 33. a6 {[%clk 0:01:39.2]} 33...
e3 {[%clk 0:01:42.8]} 34. a7 {[%clk 0:01:39.2]} 34... Ra8 {[%clk 0:01:43.3]} 35.
g3 {[%clk 0:00:59.4]} 35... Qh3 {[%clk 0:01:37]} 36. Qg2 {[%clk 0:00:52.2]}
36... Qh6 {[%clk 0:01:30.2]} 37. Ne6 {[%clk 0:00:38.4]} 37... Rfc8 {[%clk
0:00:58.7]} 38. gxf4 {[%clk 0:00:20.5]} 38... gxf4 {[%clk 0:00:58.9]} 39. Rxf4
{[%clk 0:00:19.5]} 39... Rg8 {[%clk 0:00:58.1]} 40. Qxg8+ {[%clk 0:00:19.9]}
40... Rxg8+ {[%clk 0:00:58.2]} 41. Kf1 {[%clk 0:00:19]} 41... Qh1+ {[%clk
0:00:58.5]} 42. Ke2 {[%clk 0:00:20.1]} 42... Qxa1 {[%clk 0:00:59.2]} 0-1